fUSD/lending_fUSD_20250510
["ID","MTS","AMOUNT","RATE_DAILY","PERIOD"]
[360656935,1746917458196,-400.0,0.00019864,2]
[360656937,1746917458207,-400.0,0.00019864,2]
[360656939,1746917458216,-296.16856688,0.00019864,2]
[360656941,1746917458226,-963.47,0.00019864,2]
[360656943,1746917458236,-400.0,0.00019864,2]
[360656945,1746917458246,-400.0,0.00019864,2]
[360656947,1746917458255,-400.0,0.00019864,2]
[360656949,1746917458264,-400.0,0.00019864,2]
[360656951,1746917458275,-1532.46,0.00019864,2]
[360656953,1746917458285,-400.0,0.00019864,2]
[360656955,1746917458294,-400.0,0.00019864,2]
[360656957,1746917458304,-400.0,0.00019864,2]
[360656959,1746917458313,-400.0,0.00019864,2]
[360656961,1746917458323,-400.0,0.00019864,2]
[360656963,1746917458332,-400.0,0.00019864,2]
[360656965,1746917458342,-400.0,0.00019864,2]
[360656967,1746917458352,-400.0,0.00019864,2]
[360656969,1746917458361,-400.0,0.00019864,2]
[360656971,1746917458370,-400.0,0.00019864,2]
[360656972,1746917458379,-255.23008332,0.00019865,2]
[360656975,1746917458389,-12500.0,0.00019865,2]
[360656976,1746917458398,-897.17033734,0.00019867,2]
[360656978,1746917458408,-211.47517093,0.00019869,2]
[360656980,1746917458417,-200.0,0.00019869,2]
[360656982,1746917458426,-200.0,0.0001987,2]
[360656984,1746917458436,-532.76022247,0.00019871,2]
[360656986,1746917458448,-1094603.63953285,0.00019871,2]
[360657011,1746917458684,-965.49054326,0.00019871,2]
[360657014,1746917458696,-10000.06644791,0.00019871,2]
[360657016,1746917458708,-3566.35042003,0.00019871,2]
[360657078,1746917459317,-307.5,0.00019871,2]
[360657146,1746917460059,-400.0,0.00019178,2]
[360657147,1746917460069,-260.17746977,0.00019178,2]
[360657148,1746917460131,-139.82253023,0.00019178,2]
[360657149,1746917460141,-434.79,0.00019178,2]
[360657150,1746917460151,-400.0,0.00019178,2]
[360657151,1746917460160,-400.0,0.00019178,2]
[360657152,1746917460169,-400.0,0.00019178,2]
[360657153,1746917460178,-400.0,0.00019178,2]
[360657154,1746917460187,-287.93728977,0.00019178,2]
[360657155,1746917460215,-112.06271023,0.00019178,2]
[360657156,1746917460224,-400.0,0.00019178,2]
[360657157,1746917460233,-400.0,0.00019179,2]
[360657158,1746917460243,-434.79,0.00019183,2]
[360657159,1746917460252,-400.0,0.00019619,2]
[360657160,1746917460261,-308.06944977,0.00019619,2]
[360657164,1746917493610,388.21,0.00025818,120]
[360657165,1746917493815,388.21,0.00028165,120]
[360657167,1746917590221,250.0,0.00017,2]
[360657186,1746917774898,764.55,0.00016368,2]
[360657188,1746917869307,2033.0,0.00030136,120]
[360657189,1746917892838,2000.0,0.00030136,120]
[360657190,1746917934333,2811.95,0.00030137,120]
[360657192,1746918157400,200.259,0.00030137,120]
[360657194,1746918329719,424.07,0.00013699,2]
[360657195,1746918433098,-300.0,0.00017997,2]
[360657196,1746918433118,-205.67699358,0.00017999,2]
[360657197,1746918433148,-500.0,0.00017999,2]
[360657198,1746918433178,-347.18289745,0.00017999,2]
[360657199,1746918433207,-500.0,0.00017999,2]
[360657200,1746918433236,-500.0,0.00017999,2]
[360657201,1746918433264,-500.0,0.00017999,2]
[360657202,1746918433292,-407.2564942,0.00017999,2]
[360657203,1746918446127,150.0,0.0003013,120]
[360657204,1746918447096,-92.7435058,0.00017999,2]
[360657205,1746918447127,-500.0,0.00017999,2]
[360657206,1746918447161,-328.11237141,0.00017999,2]
[360657207,1746918448090,-171.88762859,0.00017999,2]
[360657208,1746918448121,-319.46244995,0.00017999,2]
[360657209,1746918453114,-180.53755005,0.00017999,2]
[360657210,1746918453150,-500.0,0.00017999,2]
[360657211,1746918453184,-56.22369944,0.00017999,2]
[360657212,1746918459998,-187.14910654,0.00017899,2]
[360657213,1746918472014,-5.87933743,0.00017899,2]
[360657214,1746918546104,-550.0,0.00017997,2]
[360657215,1746918546134,-500.0,0.00017998,2]
[360657216,1746918546161,-500.0,0.00017998,2]
[360657217,1746918546190,-500.0,0.00017998,2]
[360657218,1746918546217,-500.0,0.00017998,2]
[360657219,1746918546244,-500.0,0.00017998,2]
[360657220,1746918546272,-500.0,0.00017998,2]
[360657221,1746918546298,-500.0,0.00017998,2]
[360657222,1746918546325,-100.55225499,0.00017998,2]
[360657223,1746918555869,150.0,0.00029,120]
[360657224,1746918562142,-399.44774501,0.00017998,2]
[360657225,1746918562169,-226.99410431,0.00017998,2]
[360657226,1746918562197,-500.0,0.00017998,2]
[360657227,1746918562226,-500.0,0.00017998,2]
[360657228,1746918562247,-158.96135068,0.00017998,2]
[360657236,1746918625777,-194.12066257,0.00017919,2]
[360657237,1746918625849,207.44,0.00026878,120]
[360657248,1746918631594,-13.31933743,0.00017919,2]
[360657249,1746918631605,-251.5409167,0.00017998,2]
[360657250,1746918631615,-139.61476557,0.00017999,2]
[360657251,1746918631627,-110.38523443,0.00017999,2]
[360657252,1746918631639,-1179.16476555,0.00018,2]
[360657253,1746918631745,-1502.60523445,0.00018,2]
[360657254,1746918631755,-903.34,0.00018057,2]
[360657255,1746918631765,-1200.0,0.00018084,2]
[360657256,1746918631775,-1172.35476555,0.00018085,2]
[360657257,1746918631866,-2827.64523445,0.00018085,2]
[360657258,1746918631875,-300.0,0.0001812,2]
[360657259,1746918631886,-552.01202082,0.00018121,2]
[360657260,1746918631897,-240.56797918,0.00018121,2]
[360657262,1746918631906,-200.0,0.00018283,2]
[360657264,1746918631916,-1922.50854933,0.00018323,2]
[360657265,1746918631925,-1922.50854932,0.00018323,2]
[360657266,1746918631934,-172.03,0.00018368,2]
[360657267,1746918631943,-207.4,0.00018481,2]
[360657268,1746918631953,-1000.0,0.00018529,2]
[360657269,1746918631962,-764.55,0.00018631,2]
[360657270,1746918631972,-7008.01860764,0.0001869,2]
[360657388,1746918637464,-200.0,0.0001788,2]
[360657389,1746918637523,-2298.69,0.0001788,2]
[360657390,1746918637533,-2599.57368,0.0001869,2]
[360657406,1746918637965,-625.5710923,0.0001869,2]
[360657407,1746918637980,-372.87803105,0.0001869,2]
[360657419,1746918639667,-2447.9,0.0001869,2]
[360657420,1746918639683,-2080.77445376,0.0001869,2]
[360657421,1746918639708,-4813.30413525,0.0001869,2]
[360657422,1746918639718,-671.50747916,0.00018737,2]
[360657423,1746918639727,-30.98838559,0.00018747,2]
[360657424,1746918639740,-23233.48794506,0.00018747,2]
[360657425,1746918639751,-629.23687052,0.00018747,2]
[360657426,1746918639853,-20291.49661205,0.00018747,2]
[360657427,1746918639863,-388.21,0.00018776,2]
[360657428,1746918639873,-163.25,0.00018803,2]
[360657429,1746918639882,-1100.80267076,0.00019,4]
[360657430,1746918639894,-300.0,0.00019,2]
[360657431,1746918639903,-1007.0,0.00019,3]
[360657432,1746918639912,-300.0,0.00019077,2]
[360657433,1746918639922,-158.98189597,0.00019078,2]
[360657434,1746918639932,-1663.13742866,0.00019078,2]
[360657435,1746918639942,-171.59964753,0.00019078,2]
[360657436,1746918639952,-1047.10450484,0.00019078,2]
[360657437,1746918639961,-1000.0,0.00019078,2]
[360657438,1746918639970,-2500.0,0.00019078,2]
[360657439,1746918639979,-1663.13742862,0.00019168,2]
[360657440,1746918639988,-1047.10450484,0.00019168,2]
[360657441,1746918639997,-228.92,0.00019168,2]
[360657442,1746918640015,-500.0,0.00019173,2]
[360657443,1746918640024,-500.0,0.00019173,2]
[360657444,1746918640034,-500.0,0.00019173,2]
[360657445,1746918640043,-500.0,0.00019173,2]
[360657446,1746918640052,-500.0,0.00019173,2]
[360657447,1746918640061,-500.0,0.00019173,2]
[360657448,1746918640072,-500.0,0.00019173,2]
[360657449,1746918640081,-500.0,0.00019178,2]
[360657450,1746918640090,-400.0,0.00019178,2]
[360657451,1746918640099,-400.0,0.00019178,2]
[360657452,1746918640109,-407.09766318,0.00019178,2]
[360657453,1746918640118,-400.0,0.00019178,2]
[360657454,1746918640127,-558.01,0.00019178,2]
[360657455,1746918640136,-558.01,0.00019178,2]
[360657456,1746918640145,-400.0,0.00019178,2]
[360657457,1746918640155,-400.0,0.00019178,2]
[360657458,1746918640164,-400.0,0.00019178,2]
[360657459,1746918640173,-400.0,0.00019178,2]
[360657460,1746918640182,-400.0,0.00019178,2]
[360657461,1746918640192,-400.0,0.00019178,2]
[360657462,1746918640205,-400.0,0.00019178,2]
[360657479,1746918640412,-400.0,0.00019178,2]
[360657480,1746918640422,-400.0,0.00019178,2]
[360657481,1746918640432,-400.0,0.00019178,2]
[360657482,1746918640445,-400.0,0.00019178,2]
[360657483,1746918640454,-485.85,0.00019178,2]
[360657484,1746918640466,-485.85,0.00019178,2]
[360657485,1746918640481,-400.0,0.00019178,2]
[360657486,1746918640501,-235.63284123,0.00019178,2]
[360657487,1746918640511,-400.0,0.00019178,2]
[360657488,1746918640520,-400.0,0.00019178,2]
[360657489,1746918640529,-400.0,0.00019178,2]
[360657490,1746918640540,-400.0,0.00019178,2]
[360657491,1746918640550,-400.0,0.00019178,2]
[360657492,1746918640559,-400.0,0.00019178,2]
[360657493,1746918640569,-400.0,0.00019178,2]
[360657494,1746918640578,-400.0,0.00019178,2]
[360657495,1746918640588,-400.0,0.00019178,2]
[360657496,1746918640598,-400.0,0.00019178,2]
[360657497,1746918640607,-400.0,0.00019178,2]
[360657498,1746918640617,-400.0,0.00019178,2]
[360657499,1746918640626,-400.0,0.00019178,2]
[360657500,1746918640636,-400.0,0.00019178,2]
[360657501,1746918640646,-400.0,0.00019178,2]
[360657502,1746918640656,-400.0,0.00019178,2]
[360657503,1746918640665,-400.0,0.00019178,2]
[360657504,1746918640675,-400.0,0.00019178,2]
[360657505,1746918640684,-400.0,0.00019178,2]
[360657506,1746918640693,-400.0,0.00019178,2]
[360657507,1746918640703,-400.0,0.00019178,2]
[360657508,1746918640712,-400.0,0.00019178,2]
[360657509,1746918640722,-400.0,0.00019178,2]
[360657510,1746918640731,-450.0,0.00019178,2]
[360657511,1746918640740,-400.0,0.00019178,2]
[360657512,1746918640749,-400.0,0.00019178,2]
[360657513,1746918640759,-440.97,0.00019178,2]
[360657514,1746918640768,-440.97,0.00019178,2]
[360657515,1746918640778,-400.0,0.00019178,2]
[360657516,1746918640787,-400.0,0.00019178,2]
[360657517,1746918640796,-400.0,0.00019178,2]
[360657518,1746918640806,-400.0,0.00019178,2]
[360657519,1746918640815,-400.0,0.00019178,2]
[360657520,1746918640825,-400.0,0.00019178,2]
[360657521,1746918640835,-400.0,0.00019178,2]
[360657522,1746918640844,-400.0,0.00019178,2]
[360657523,1746918640853,-400.0,0.00019178,2]
[360657524,1746918640863,-400.0,0.00019178,2]
[360657525,1746918640873,-300.0,0.00019178,2]
[360657526,1746918640882,-400.0,0.00019178,2]
[360657527,1746918640893,-300.0,0.00019178,2]
[360657528,1746918640902,-400.0,0.00019178,2]
[360657529,1746918640911,-400.0,0.00019178,2]
[360657530,1746918640921,-400.0,0.00019178,2]
[360657531,1746918640930,-241.7191376,0.00019178,2]
[360657532,1746918640939,-400.0,0.00019178,2]
[360657533,1746918640948,-400.0,0.00019178,2]
[360657534,1746918640957,-400.0,0.00019178,2]
[360657535,1746918640966,-400.0,0.00019178,2]
[360657536,1746918640975,-400.0,0.00019178,2]
[360657537,1746918640984,-400.0,0.00019178,2]
[360657538,1746918640993,-400.0,0.00019178,2]
[360657539,1746918641002,-400.0,0.00019178,2]
[360657540,1746918641011,-465.67,0.00019178,2]
[360657541,1746918641021,-227.84267304,0.00019178,2]
[360657542,1746918641030,-400.0,0.00019178,2]
[360657543,1746918641039,-400.0,0.00019178,2]
[360657544,1746918641050,-400.0,0.00019178,2]
[360657545,1746918641059,-400.0,0.00019178,2]
[360657546,1746918641068,-400.0,0.00019178,2]
[360657547,1746918641086,-400.0,0.00019178,2]
[360657548,1746918641098,-527.17,0.00019178,2]
[360657549,1746918641107,-400.0,0.00019178,2]
[360657550,1746918641116,-400.0,0.00019178,2]
[360657551,1746918641125,-527.17,0.00019178,2]
[360657552,1746918641134,-400.0,0.00019178,2]
[360657553,1746918641144,-400.0,0.00019178,2]
[360657554,1746918641153,-400.0,0.00019178,2]
[360657555,1746918641162,-400.0,0.00019178,2]
[360657556,1746918641171,-231.05360797,0.00019178,2]
[360657557,1746918641180,-400.0,0.00019178,2]
[360657558,1746918641192,-400.0,0.00019178,2]
[360657559,1746918641202,-400.0,0.00019178,2]
[360657560,1746918641210,-400.0,0.00019178,2]
[360657561,1746918641220,-400.0,0.00019178,2]
[360657562,1746918641229,-400.0,0.00019178,2]
[360657563,1746918641239,-400.0,0.00019178,2]
[360657564,1746918641248,-384.24938911,0.00019178,2]
[360657565,1746918641257,-400.0,0.00019178,2]
[360657566,1746918641266,-400.0,0.00019178,2]
[360657567,1746918641278,-400.0,0.00019178,2]
[360657568,1746918641287,-400.0,0.00019178,2]
[360657569,1746918641296,-400.0,0.00019178,2]
[360657570,1746918641306,-400.0,0.00019178,2]
[360657571,1746918641315,-400.0,0.00019178,2]
[360657572,1746918641325,-476.31,0.00019178,2]
[360657573,1746918641334,-400.0,0.00019178,2]
[360657574,1746918641342,-400.0,0.00019178,2]
[360657575,1746918641351,-400.0,0.00019178,2]
[360657576,1746918641359,-400.0,0.00019178,2]
[360657577,1746918641368,-400.0,0.00019178,2]
[360657578,1746918641377,-400.0,0.00019178,2]
[360657579,1746918641386,-400.0,0.00019178,2]
[360657580,1746918641394,-400.0,0.00019178,2]
[360657581,1746918641404,-400.0,0.00019178,2]
[360657582,1746918641413,-400.0,0.00019178,2]
[360657583,1746918641423,-191.19,0.00019178,2]
[360657584,1746918641432,-400.0,0.00019178,2]
[360657585,1746918641441,-400.0,0.00019178,2]
[360657586,1746918641452,-404.55123858,0.00019178,2]
[360657587,1746918641461,-400.0,0.00019178,2]
[360657588,1746918641470,-400.0,0.00019178,2]
[360657589,1746918641479,-350.65335111,0.00019178,2]
[360657590,1746918641489,-400.0,0.00019178,2]
[360657591,1746918641498,-400.0,0.00019178,2]
[360657592,1746918641507,-400.0,0.00019178,2]
[360657593,1746918641516,-400.0,0.00019178,2]
[360657594,1746918641526,-400.0,0.00019178,2]
[360657595,1746918641535,-856.38,0.00019178,2]
[360657596,1746918641544,-400.0,0.00019178,2]
[360657597,1746918641554,-400.0,0.00019178,2]
[360657598,1746918641564,-400.0,0.00019178,2]
[360657599,1746918641573,-400.0,0.00019178,2]
[360657600,1746918641583,-402.71270626,0.00019178,2]
[360657601,1746918641592,-400.0,0.00019178,2]
[360657602,1746918641602,-400.0,0.00019178,2]
[360657603,1746918641611,-400.0,0.00019178,2]
[360657604,1746918641621,-400.0,0.00019178,2]
[360657605,1746918641630,-400.0,0.00019178,2]
[360657606,1746918641640,-400.0,0.00019178,2]
[360657607,1746918641652,-400.0,0.00019178,2]
[360657608,1746918641662,-400.0,0.00019178,2]
[360657609,1746918641671,-400.0,0.00019178,2]
[360657610,1746918641681,-400.0,0.00019178,2]
[360657611,1746918641690,-400.0,0.00019178,2]
[360657612,1746918641700,-400.0,0.00019178,2]
[360657613,1746918641709,-400.0,0.00019178,2]
[360657614,1746918641719,-544.88386655,0.00019178,2]
[360657615,1746918641728,-400.0,0.00019178,2]
[360657616,1746918641738,-400.0,0.00019178,2]
[360657617,1746918641747,-400.0,0.00019178,2]
[360657618,1746918641757,-400.0,0.00019178,2]
[360657619,1746918641766,-400.0,0.00019178,2]
[360657620,1746918641775,-400.0,0.00019178,2]
[360657621,1746918641783,-400.0,0.00019178,2]
[360657622,1746918641793,-400.0,0.00019178,2]
[360657623,1746918641801,-400.0,0.00019178,2]
[360657624,1746918641810,-400.0,0.00019178,2]
[360657625,1746918641820,-400.0,0.00019178,2]
[360657626,1746918641828,-400.0,0.00019178,2]
[360657627,1746918641837,-400.0,0.00019178,2]
[360657628,1746918641847,-400.0,0.00019178,2]
[360657629,1746918641856,-491.85498439,0.00019178,2]
[360657630,1746918641866,-400.0,0.00019178,2]
[360657631,1746918641876,-400.0,0.00019178,2]
[360657632,1746918641885,-400.0,0.00019178,2]
[360657633,1746918641897,-557.8,0.00019178,2]
[360657634,1746918641907,-400.0,0.00019178,2]
[360657635,1746918641916,-400.0,0.00019178,2]
[360657636,1746918641925,-400.0,0.00019178,2]
[360657637,1746918641935,-400.0,0.00019178,2]
[360657638,1746918641944,-400.0,0.00019178,2]
[360657639,1746918641953,-400.0,0.00019178,2]
[360657640,1746918641962,-400.0,0.00019178,2]
[360657641,1746918641971,-400.0,0.00019178,2]
[360657642,1746918641981,-400.0,0.00019178,2]
[360657643,1746918641990,-400.0,0.00019178,2]
[360657644,1746918641999,-1133.04,0.00019178,2]
[360657645,1746918642008,-400.0,0.00019178,2]
[360657646,1746918642017,-400.0,0.00019178,2]
[360657647,1746918642026,-400.0,0.00019178,2]
[360657648,1746918642035,-400.0,0.00019178,2]
[360657649,1746918642045,-400.0,0.00019178,2]
[360657650,1746918642054,-400.0,0.00019178,2]
[360657651,1746918642063,-400.0,0.00019178,2]
[360657652,1746918642073,-400.0,0.00019178,2]
[360657653,1746918642082,-400.0,0.00019178,2]
[360657654,1746918642090,-400.0,0.00019178,2]
[360657655,1746918642099,-400.0,0.00019178,2]
[360657656,1746918642108,-400.0,0.00019178,2]
[360657657,1746918642117,-410.21,0.00019178,2]
[360657658,1746918642126,-532.67,0.00019178,2]
[360657659,1746918642136,-400.0,0.00019178,2]
[360657660,1746918642145,-400.0,0.00019178,2]
[360657661,1746918642154,-400.0,0.00019178,2]
[360657662,1746918642163,-400.0,0.00019178,2]
[360657663,1746918642173,-400.0,0.00019178,2]
[360657664,1746918642182,-400.0,0.00019178,2]
[360657665,1746918642192,-400.0,0.00019178,2]
[360657666,1746918642203,-400.0,0.00019178,2]
[360657667,1746918642213,-400.0,0.00019178,2]
[360657668,1746918642222,-400.0,0.00019178,2]
[360657669,1746918642231,-400.0,0.00019178,2]
[360657670,1746918642240,-400.0,0.00019178,2]
[360657671,1746918642250,-400.0,0.00019178,2]
[360657672,1746918642260,-400.0,0.00019178,2]
[360657673,1746918642269,-400.0,0.00019178,2]
[360657674,1746918642281,-400.0,0.00019178,2]
[360657675,1746918642290,-400.0,0.00019178,2]
[360657676,1746918642300,-400.0,0.00019178,2]
[360657677,1746918642310,-400.0,0.00019178,2]
[360657678,1746918642319,-400.0,0.00019178,2]
[360657679,1746918642330,-400.0,0.00019178,2]
[360657680,1746918642339,-815.58,0.00019178,2]
[360657681,1746918642349,-815.58,0.00019178,2]
[360657682,1746918642358,-400.0,0.00019178,2]
[360657683,1746918642367,-400.0,0.00019178,2]
[360657684,1746918642377,-400.0,0.00019178,2]
[360657685,1746918642386,-400.0,0.00019178,2]
[360657686,1746918642396,-400.0,0.00019178,2]
[360657687,1746918642406,-400.0,0.00019178,2]
[360657688,1746918642415,-400.0,0.00019178,2]
[360657689,1746918642424,-400.0,0.00019178,2]
[360657690,1746918642434,-400.0,0.00019178,2]
[360657691,1746918642443,-400.0,0.00019178,2]
[360657692,1746918642452,-408.02,0.00019178,2]
[360657695,1746918642462,-608.74,0.00019178,2]
[360657696,1746918642471,-608.74,0.00019178,2]
[360657697,1746918642479,-408.02,0.00019178,2]
[360657699,1746918642488,-150.0,0.00019178,2]
[360657701,1746918642497,-400.0,0.00019178,2]
[360657702,1746918642506,-400.0,0.00019178,2]
[360657703,1746918642515,-400.0,0.00019178,2]
[360657704,1746918642524,-400.0,0.00019178,2]
[360657705,1746918642533,-400.0,0.00019178,2]
[360657706,1746918642542,-312.00145336,0.00019178,2]
[360657707,1746918642551,-400.0,0.00019178,2]
[360657708,1746918642561,-400.0,0.00019178,2]
[360657709,1746918642570,-411.59,0.00019178,2]
[360657710,1746918642579,-400.0,0.00019178,2]
[360657711,1746918642589,-411.59,0.00019178,2]
[360657712,1746918642598,-563.08,0.00019178,2]
[360657713,1746918642607,-400.0,0.00019178,2]
[360657714,1746918642617,-400.0,0.00019178,2]
[360657715,1746918642626,-400.0,0.00019178,2]
[360657716,1746918642635,-1207.14,0.00019178,2]
[360657717,1746918642645,-400.0,0.00019178,2]
[360657718,1746918642654,-400.0,0.00019178,2]
[360657719,1746918642663,-580.46,0.00019178,2]
[360657720,1746918642672,-580.46,0.00019178,2]
[360657721,1746918642681,-400.0,0.00019178,2]
[360657722,1746918642690,-400.0,0.00019178,2]
[360657723,1746918642700,-1323.82,0.00019178,2]
[360657724,1746918642710,-400.0,0.00019178,2]
[360657725,1746918642719,-400.0,0.00019178,2]
[360657726,1746918642728,-400.0,0.00019178,2]
[360657727,1746918642738,-400.0,0.00019178,2]
[360657728,1746918642748,-400.0,0.00019178,2]
[360657729,1746918642757,-400.0,0.00019178,2]
[360657730,1746918642766,-400.0,0.00019178,2]
[360657731,1746918642776,-400.0,0.00019178,2]
[360657732,1746918642785,-400.0,0.00019178,2]
[360657733,1746918642794,-394.82,0.00019178,2]
[360657734,1746918642804,-400.0,0.00019178,2]
[360657735,1746918642814,-400.0,0.00019178,2]
[360657736,1746918642824,-400.0,0.00019178,2]
[360657737,1746918642833,-400.0,0.00019178,2]
[360657738,1746918642842,-400.0,0.00019178,2]
[360657739,1746918642852,-400.0,0.00019178,2]
[360657740,1746918642861,-400.0,0.00019178,2]
[360657741,1746918642871,-400.0,0.00019178,2]
[360657742,1746918642880,-400.0,0.00019178,2]
[360657743,1746918642890,-400.0,0.00019178,2]
[360657744,1746918642901,-400.0,0.00019178,2]
[360657745,1746918642912,-400.0,0.00019178,2]
[360657746,1746918642921,-400.0,0.00019178,2]
[360657747,1746918642931,-400.0,0.00019178,2]
[360657748,1746918642940,-400.0,0.00019178,2]
[360657749,1746918642950,-400.0,0.00019178,2]
[360657750,1746918642959,-400.0,0.00019178,2]
[360657751,1746918642968,-400.0,0.00019178,2]
[360657752,1746918642977,-400.0,0.00019178,2]
[360657753,1746918642987,-1157.25,0.00019178,2]
[360657754,1746918642996,-554.52,0.00019178,2]
[360657755,1746918643006,-554.52,0.00019178,2]
[360657756,1746918643015,-536.27,0.00019178,2]
[360657757,1746918643024,-621.61,0.00019178,2]
[360657758,1746918643034,-536.27,0.00019178,2]
[360657759,1746918643043,-400.0,0.00019178,2]
[360657760,1746918643052,-400.0,0.00019178,2]
[360657761,1746918643061,-690.21,0.00019178,2]
[360657762,1746918643071,-400.0,0.00019178,2]
[360657763,1746918643080,-690.21,0.00019178,2]
[360657764,1746918643089,-400.0,0.00019178,2]
[360657765,1746918643098,-400.0,0.00019178,2]
[360657766,1746918643107,-400.0,0.00019178,2]
[360657767,1746918643116,-400.0,0.00019178,2]
[360657768,1746918643125,-400.0,0.00019178,2]
[360657769,1746918643135,-400.0,0.00019178,2]
[360657770,1746918643144,-400.0,0.00019178,2]
[360657771,1746918643153,-400.0,0.00019178,2]
[360657772,1746918643162,-400.0,0.00019178,2]
[360657773,1746918643172,-242.51287777,0.00019178,2]
[360657774,1746918643181,-500.0,0.00019178,2]
[360657775,1746918643191,-617.37,0.00019178,2]
[360657776,1746918643204,-617.37,0.00019178,2]
[360657777,1746918643213,-400.0,0.00019178,2]
[360657778,1746918643223,-449.42,0.00019178,2]
[360657779,1746918643232,-449.42,0.00019178,2]
[360657780,1746918643242,-202.32961931,0.00019178,2]
[360657781,1746918643251,-400.0,0.00019178,2]
[360657782,1746918643260,-506.87,0.00019178,2]
[360657783,1746918643270,-506.87,0.00019178,2]
[360657784,1746918643281,-400.0,0.00019178,2]
[360657785,1746918643291,-400.0,0.00019178,2]
[360657786,1746918643300,-400.0,0.00019178,2]
[360657787,1746918643309,-400.0,0.00019178,2]
[360657788,1746918643318,-400.0,0.00019178,2]
[360657789,1746918643327,-386.55120737,0.00019178,2]
[360657790,1746918643337,-400.0,0.00019178,2]
[360657791,1746918643346,-400.0,0.00019178,2]
[360657792,1746918643355,-290.19630198,0.00019178,2]
[360657793,1746918643365,-400.0,0.00019178,2]
[360657794,1746918643374,-400.0,0.00019178,2]
[360657795,1746918643383,-246.03729259,0.00019178,2]
[360657796,1746918643392,-400.0,0.00019178,2]
[360657797,1746918643402,-400.0,0.00019178,2]
[360657798,1746918643412,-400.0,0.00019178,2]
[360657799,1746918643421,-882.4,0.00019178,2]
[360657800,1746918643430,-882.4,0.00019178,2]
[360657801,1746918643439,-410.54,0.00019178,2]
[360657802,1746918643448,-400.0,0.00019178,2]
[360657803,1746918643457,-518.45347181,0.00019178,2]
[360657804,1746918643466,-400.0,0.00019178,2]
[360657805,1746918643475,-400.0,0.00019178,2]
[360657806,1746918643485,-400.0,0.00019178,2]
[360657807,1746918643494,-400.0,0.00019178,2]
[360657808,1746918643503,-400.0,0.00019178,2]
[360657809,1746918643512,-400.0,0.00019178,2]
[360657810,1746918643521,-400.0,0.00019178,2]
[360657811,1746918643530,-400.0,0.00019178,2]
[360657812,1746918643540,-400.0,0.00019178,2]
[360657813,1746918643550,-400.0,0.00019178,2]
[360657814,1746918643559,-534.59,0.00019178,2]
[360657815,1746918643568,-400.0,0.00019178,2]
[360657816,1746918643577,-533.51782319,0.00019178,2]
[360657817,1746918643587,-400.0,0.00019178,2]
[360657818,1746918643596,-517.78444898,0.00019178,2]
[360657819,1746918643605,-400.0,0.00019178,2]
[360657820,1746918643615,-400.0,0.00019178,2]
[360657821,1746918643624,-512.63396778,0.00019178,2]